bitfinex/quotes_BTCUSD_20250512
["timestamp","ask_amount","ask_price","bid_price","bid_amount"]
[1747057751982,0.2330117,103890.0,103880.0,1.46031063]
[1747057752227,0.2330117,103890.0,103880.0,0.006]
[1747057752228,0.33143372,103890.0,103880.0,0.006]
[1747057753937,0.42728802,103890.0,103880.0,0.006]
[1747057754148,0.8917133,103890.0,103880.0,0.006]
[1747057754355,0.21180255,103870.0,103860.0,0.00014664]
[1747057754564,0.25320255,103870.0,103860.0,0.00014664]
[1747057755386,0.25320255,103870.0,103860.0,0.19271355]
[1747057755616,0.23230255,103870.0,103860.0,0.20234189]
[1747057755837,0.2246756,103870.0,103860.0,0.20234189]
[1747057756072,0.21504837,103870.0,103860.0,0.00014664]
[1747057756292,0.01162723,103870.0,103860.0,0.22159746]
[1747057756514,0.22342987,103870.0,103860.0,0.20234189]
[1747057756724,0.21380292,103870.0,103860.0,0.00014664]
[1747057756938,0.21480292,103870.0,103860.0,0.00014664]
[1747057757146,0.21480292,103870.0,103860.0,0.20234171]
[1747057757361,0.21480292,103870.0,103860.0,0.00014664]
[1747057757570,0.23540292,103870.0,103860.0,0.00014664]
[1747057757790,0.25480292,103870.0,103860.0,0.00014664]
[1747057758441,0.003,103870.0,103860.0,1.02110985]
[1747057758921,0.003,103870.0,103860.0,1.11696415]
[1747057759160,0.23405663,103870.0,103860.0,0.64782435]
[1747057759373,0.04150817,103870.0,103860.0,0.66708001]
[1747057759585,0.21480292,103870.0,103860.0,0.43600094]
[1747057759789,0.21380292,103870.0,103860.0,0.44562928]
[1747057759993,0.21380292,103870.0,103860.0,0.63819619]
[1747057760220,0.24507569,103870.0,103860.0,0.34014664]
[1747057760441,0.22327569,103870.0,103860.0,0.34014664]
[1747057760653,0.22327569,103870.0,103860.0,0.54234171]
[1747057760864,0.22327569,103870.0,103860.0,0.53371355]
[1747057761319,0.20217569,103870.0,103860.0,0.54334171]
[1747057761590,0.22195605,103880.0,103870.0,0.21180273]
[1747057761805,0.22140847,103880.0,103870.0,0.20217569]
[1747057762019,0.22140847,103880.0,103870.0,0.21180283]
[1747057762460,0.01162482,103890.0,103880.0,0.23103431]
[1747057762700,0.0308753,103890.0,103880.0,0.68091874]
[1747057762956,0.0308753,103890.0,103880.0,1.02091874]
[1747057763198,0.01162482,103890.0,103880.0,1.11677304]
[1747057763415,0.0405003,103890.0,103880.0,1.11677304]
[1747057763846,0.0405003,103890.0,103880.0,1.51677304]
[1747057764083,0.23601161,103890.0,103880.0,1.05726277]
[1747057764300,0.24563717,103890.0,103880.0,0.65726277]
[1747057764520,0.22838744,103890.0,103880.0,0.34]
[1747057764725,0.22338744,103890.0,103880.0,0.99204029]
[1747057764936,0.22338744,103890.0,103880.0,1.00266659]
[1747057765402,0.011625,103890.0,103880.0,1.10814673]
[1747057765675,0.04050003,103890.0,103880.0,1.10814673]
[1747057765895,0.002,103890.0,103880.0,1.10814673]
[1747057766115,0.002,103890.0,103880.0,1.57793116]
[1747057766363,0.002,103890.0,103880.0,1.47880173]
[1747057766793,0.002,103890.0,103880.0,1.38532773]
[1747057768146,0.002,103890.0,103880.0,1.29988557]
[1747057768351,0.23426179,103890.0,103880.0,0.341]
[1747057768569,0.25396179,103890.0,103880.0,0.001]
[1747057771562,0.25396179,103890.0,103880.0,0.19352984]
[1747057771776,0.002,103890.0,103880.0,1.11777341]
[1747057771978,0.002,103890.0,103880.0,1.56765784]
[1747057772366,0.002,103890.0,103880.0,2.54362541]
[1747057772576,0.002,103890.0,103880.0,2.56292541]
[1747057773023,0.002,103890.0,103880.0,2.51043041]
[1747057774895,0.002,103890.0,103880.0,2.10767069]
[1747057775100,0.002,103910.0,103890.0,0.05624085]
[1747057775313,0.01162297,103910.0,103900.0,1.10902884]
[1747057775535,0.002,103910.0,103900.0,1.14244515]
[1747057775750,0.002,103930.0,103920.0,0.56132296]
[1747057775959,0.002,103930.0,103920.0,1.10706169]
[1747057776175,0.002,103930.0,103920.0,1.55694612]
[1747057776462,0.00248958,103930.0,103920.0,1.12796169]
[1747057776702,0.04097515,103930.0,103920.0,0.4358543]
[1747057776931,0.04278958,103930.0,103920.0,0.63793263]
[1747057777142,0.00248958,103930.0,103920.0,1.1070616]
[1747057777343,0.00348958,103930.0,103920.0,1.1070616]
[1747057777554,0.01211079,103930.0,103920.0,1.1070616]
[1747057777752,0.0121106,103930.0,103920.0,1.1070616]
[1747057777994,0.23341208,103930.0,103920.0,1.07819446]
[1747057778209,0.21416985,103930.0,103920.0,0.88573873]
[1747057778413,0.21416985,103930.0,103920.0,1.08781724]
[1747057778670,0.21416985,103930.0,103920.0,1.10706216]
[1747057778869,0.21416985,103930.0,103920.0,1.10706234]
[1747057779076,0.21416985,103930.0,103920.0,1.11668466]
[1747057779294,0.21416985,103930.0,103920.0,0.66680023]
[1747057779680,0.21416985,103930.0,103920.0,0.6475555]
[1747057779878,0.21416985,103930.0,103920.0,0.6571781]
[1747057780093,0.21416985,103930.0,103920.0,0.6475555]
[1747057780295,0.20454791,103930.0,103920.0,0.6475555]
[1747057780494,0.22379079,103930.0,103920.0,1.10706234]
[1747057780673,0.00248958,103930.0,103920.0,1.11668447]
[1747057781260,0.00248958,103930.0,103920.0,2.09909647]
[1747057781462,0.00248958,103930.0,103920.0,1.12617154]
[1747057781729,0.00248958,103930.0,103920.0,1.87348754]
[1747057782347,0.00248958,103930.0,103920.0,2.35791282]
[1747057782568,0.00248958,103930.0,103920.0,2.66879282]
[1747057783149,0.00248958,103930.0,103920.0,2.32147682]
[1747057783387,0.00248958,103930.0,103920.0,3.48383339]
[1747057783613,0.00248958,103930.0,103920.0,3.93371782]
[1747057784261,0.00248958,103930.0,103920.0,2.86894339]
[1747057784462,0.00248958,103930.0,103920.0,2.66372339]
[1747057784660,0.00248958,103930.0,103920.0,2.31725339]
[1747057786431,0.00248958,103930.0,103920.0,2.76713782]
[1747057787629,0.00248958,103930.0,103920.0,2.76913782]
[1747057788030,0.00248958,103930.0,103920.0,2.77113782]
[1747057788231,0.00248958,103930.0,103920.0,2.57868209]
[1747057788790,0.00248958,103930.0,103920.0,2.54019208]
[1747057789643,0.002,103950.0,103930.0,0.35454085]
[1747057789785,0.00214685,103950.0,103940.0,0.54766243]
[1747057789996,0.00214685,103950.0,103940.0,2.02441758]
[1747057790203,0.00214685,103950.0,103940.0,2.04461758]
[1747057790408,0.00214685,103950.0,103940.0,2.44461758]
[1747057790782,0.00214685,103950.0,103940.0,1.73148358]
[1747057791181,0.00214685,103950.0,103940.0,1.75168358]
[1747057791404,0.00214685,103950.0,103940.0,1.76908358]
[1747057792091,0.00214685,103950.0,103940.0,1.75168358]
[1747057792300,0.00214685,103950.0,103940.0,1.73148358]
[1747057792693,0.00314685,103950.0,103940.0,1.73148358]
[1747057792893,0.00314685,103950.0,103940.0,1.70102458]
[1747057793093,0.00214685,103950.0,103940.0,1.70102458]
[1747057793324,0.00214685,103950.0,103940.0,1.67789058]
[1747057793529,0.00214685,103950.0,103940.0,1.67889058]
[1747057794326,0.00214685,103950.0,103940.0,2.47596958]
[1747057794748,0.00214685,103950.0,103940.0,2.49246958]
[1747057795319,0.00214685,103950.0,103940.0,2.50986958]
[1747057796675,0.09427175,103980.0,103950.0,0.01454085]
[1747057796868,0.0205,103980.0,103970.0,0.44988443]
[1747057797312,0.0372,103980.0,103970.0,0.44988443]
[1747057797514,0.0372,103980.0,103970.0,0.4]
[1747057797722,0.0372,103980.0,103970.0,0.84988443]
[1747057798356,0.0392,103980.0,103970.0,0.84988443]
[1747057798599,0.002,103980.0,103970.0,2.21593758]
[1747057798823,0.002,103980.0,103970.0,2.23323758]
[1747057799072,0.1118264,104000.0,103990.0,0.04864085]
[1747057799349,0.011189,104020.0,104000.0,0.34]
[1747057799569,0.01133593,104020.0,104010.0,0.69442122]
[1747057799793,0.01133593,104020.0,104010.0,0.69249873]
[1747057800018,0.01133593,104020.0,104010.0,0.72409389]
[1747057800246,0.01133593,104020.0,104010.0,0.73863474]
[1747057800471,0.01133593,104020.0,104010.0,2.55376374]
[1747057800684,0.01133593,104020.0,104010.0,2.21940968]
[1747057800932,0.01133593,104020.0,104010.0,2.20788968]
[1747057801154,0.01133593,104020.0,104010.0,2.60788968]
[1747057801869,0.01233593,104020.0,104010.0,2.57165774]
[1747057802341,0.01233593,104020.0,104010.0,2.28959774]
[1747057802562,0.01233593,104020.0,104010.0,1.27186574]
[1747057802803,0.04693593,104020.0,104010.0,0.94573873]
[1747057803037,0.04693593,104020.0,104010.0,0.0958543]
[1747057803266,0.04893593,104020.0,104010.0,0.0958543]
[1747057804236,0.04893593,104020.0,104010.0,0.54573873]
[1747057804478,0.04893593,104020.0,104010.0,0.0958543]
[1747057806828,0.04893593,104020.0,104010.0,0.88766132]
[1747057807130,0.04893593,104020.0,104010.0,0.88573873]
[1747057807218,0.01433593,104020.0,104010.0,0.88573873]
[1747057807458,0.01433593,104020.0,104010.0,3.15439458]
[1747057807693,0.01433593,104020.0,104010.0,2.98542658]
[1747057807934,0.002,104030.0,104020.0,0.01454085]
[1747057808149,0.002,104030.0,104020.0,0.56220171]
[1747057808373,0.002,104030.0,104020.0,3.79443958]
[1747057808663,0.002,104030.0,104020.0,3.78475025]
[1747057808914,0.002,104050.0,104040.0,1.23976886]
[1747057809184,0.002,104050.0,104040.0,2.93992655]
[1747057809425,0.002,104070.0,104050.0,0.01454085]
[1747057809681,0.0024897,104070.0,104060.0,0.8876602]
[1747057809907,0.0024897,104070.0,104060.0,0.88573873]
[1747057810366,0.0360897,104070.0,104060.0,0.4358543]
[1747057810596,0.0360897,104070.0,104060.0,0.88573873]
[1747057811088,0.0370897,104070.0,104060.0,0.88573873]
[1747057811318,0.0380897,104070.0,104060.0,0.88573873]
[1747057812023,0.0044897,104070.0,104060.0,1.28573873]
[1747057812293,0.0393897,104070.0,104060.0,1.28573873]
[1747057812525,0.0044897,104070.0,104060.0,1.28573873]
[1747057812751,0.0034897,104070.0,104060.0,1.28573873]
[1747057813214,0.0064897,104070.0,104060.0,1.28573873]
[1747057813683,0.0064897,104070.0,104060.0,3.34564458]
[1747057813908,0.0064897,104070.0,104060.0,2.56615358]
[1747057814350,0.0064897,104070.0,104060.0,2.59975358]
[1747057814351,0.0024897,104070.0,104060.0,2.59975358]
[1747057814565,0.0034897,104070.0,104060.0,2.60075358]
[1747057814809,0.0034897,104070.0,104060.0,2.56715358]
[1747057815883,0.0034897,104070.0,104060.0,2.56615358]
[1747057816133,0.0024897,104070.0,104060.0,1.44425858]
[1747057816349,0.0024897,104070.0,104060.0,1.46435858]
[1747057816563,0.0024897,104070.0,104060.0,1.48025858]
[1747057817003,0.0024897,104070.0,104060.0,1.48325858]
[1747057817185,0.00206,104090.0,104080.0,1.25430971]
[1747057817458,0.00220681,104090.0,104080.0,3.38959101]
[1747057817682,0.00220681,104090.0,104080.0,4.64316401]
[1747057817901,0.00220681,104090.0,104080.0,4.66066401]
[1747057818129,0.00014681,104090.0,104080.0,4.13798458]
[1747057818352,0.002,104130.0,104110.0,0.04834085]
[1747057818563,0.002,104150.0,104130.0,0.35454085]
[1747057818783,0.002,104150.0,104140.0,2.2130782]
[1747057818998,0.00214676,104150.0,104140.0,2.16344943]
[1747057819215,0.00214676,104150.0,104140.0,2.72778816]
[1747057819432,0.00214676,104150.0,104140.0,2.48449374]
[1747057819649,0.00214676,104150.0,104140.0,2.46589374]
[1747057819878,0.00214676,104150.0,104140.0,1.64678374]
[1747057820109,0.00314676,104150.0,104140.0,1.61868274]
[1747057820324,0.19417748,104150.0,104140.0,1.33980054]
[1747057820539,0.19417748,104150.0,104140.0,1.67000569]
[1747057820756,0.00214676,104150.0,104140.0,1.78854654]
[1747057820971,0.00214676,104150.0,104140.0,0.98973873]
[1747057820972,0.19417748,104150.0,104140.0,0.98973873]
[1747057821188,0.22797748,104150.0,104140.0,0.98973873]
[1747057821399,0.22797748,104150.0,104140.0,0.1998543]
[1747057821400,0.30474923,104150.0,104140.0,0.1998543]
[1747057821630,0.30474923,104150.0,104140.0,0.104]
[1747057822093,1.19148796,104150.0,104140.0,0.03216679]
[1747057822312,0.1921045,104110.0,104100.0,0.002]
[1747057822592,0.1921045,104110.0,104100.0,0.0978543]
[1747057822796,0.1921045,104110.0,104100.0,0.7417827]
[1747057823003,0.1921045,104110.0,104100.0,0.28997725]
[1747057823218,0.1921045,104110.0,104100.0,0.0978543]
[1747057823631,0.19210227,104120.0,104100.0,0.62997725]
[1747057823842,0.20170898,104110.0,104100.0,0.54372891]
[1747057824069,0.21231365,104110.0,104100.0,0.30918908]
[1747057824279,0.23252381,104110.0,104100.0,0.342]
[1747057824494,0.23252381,104110.0,104100.0,0.4378543]
[1747057824495,0.20370944,104110.0,104100.0,0.4378543]
[1747057824719,0.00568696,104110.0,104100.0,0.77730509]
[1747057824932,0.002,104110.0,104100.0,1.55321636]
[1747057825151,0.20370889,104110.0,104100.0,1.07549457]
[1747057825334,0.01160439,104110.0,104100.0,1.55321636]
[1747057825540,0.002,104110.0,104100.0,1.55321636]
[1747057825748,0.20370889,104110.0,104100.0,1.69977645]
[1747057825952,0.03081354,104110.0,104100.0,1.69977645]
[1747057826185,0.02120887,104110.0,104100.0,1.67347096]
[1747057826366,0.02120887,104110.0,104100.0,1.69268223]
[1747057826584,0.2325227,104110.0,104100.0,1.69268223]
[1747057826961,0.24212755,104110.0,104100.0,1.69268223]
[1747057827178,0.002,104110.0,104100.0,3.67347908]
[1747057827384,0.002,104110.0,104100.0,4.10635908]
[1747057827787,0.002,104110.0,104100.0,4.11635908]
[1747057828185,0.003,104150.0,104140.0,0.22085541]
[1747057828383,0.01274765,104150.0,104140.0,1.0871115]
[1747057828585,0.21437935,104150.0,104140.0,0.59018582]
[1747057828782,0.22398088,104150.0,104140.0,0.3885343]
[1747057828987,0.22398088,104150.0,104140.0,0.79813675]
[1747057829196,0.20477883,104150.0,104140.0,0.4958543]
[1747057829403,0.20165143,104140.0,104130.0,0.34]
[1747057829603,0.20165143,104140.0,104130.0,0.6279219]
[1747057829604,0.21125361,104140.0,104130.0,0.6279219]
[1747057829812,0.21125361,104140.0,104130.0,1.04712847]
[1747057830032,0.22085476,104140.0,104130.0,1.04712847]
[1747057830244,0.23045777,104140.0,104130.0,1.0279219]
[1747057830463,0.01920343,104140.0,104130.0,1.06633393]
[1747057830677,0.01920352,104140.0,104130.0,1.53445234]
[1747057830903,0.00960162,104140.0,104130.0,1.53445234]
[1747057831120,0.21437934,104150.0,104140.0,0.2112536]
[1747057831336,0.00314676,104150.0,104140.0,0.78482969]
[1747057831576,0.00314676,104150.0,104140.0,1.14403349]
[1747057832008,0.00314676,104150.0,104140.0,1.69011349]
[1747057832433,0.01374755,104150.0,104140.0,1.69011349]
[1747057832644,0.00414676,104150.0,104140.0,1.69011349]
[1747057832847,0.01374765,104150.0,104140.0,1.70631349]
[1747057833053,0.2259806,104150.0,104140.0,1.69671168]
[1747057833271,0.21537935,104150.0,104140.0,1.69671168]
[1747057833486,0.22498051,104150.0,104140.0,0.9819343]
[1747057833694,0.22398142,104150.0,104140.0,0.99253675]
[1747057833907,0.21437989,104150.0,104140.0,1.19418827]
[1747057834112,0.21437989,104150.0,104140.0,1.21339253]
[1747057834548,0.22762601,104150.0,104140.0,1.21339253]
[1747057834893,0.22762601,104150.0,104140.0,1.18458582]
[1747057835147,0.23722754,104150.0,104140.0,1.18458591]
[1747057835356,0.22762638,104150.0,104140.0,0.9829343]
[1747057835764,0.21802513,104150.0,104140.0,0.84645666]
[1747057836172,0.21802513,104150.0,104140.0,1.05770971]
[1747057836173,0.01639233,104150.0,104140.0,1.05770971]
[1747057836549,0.00679144,104150.0,104140.0,1.05770971]
[1747057836762,0.00679144,104150.0,104140.0,1.5354315]
[1747057837318,0.00679144,104150.0,104140.0,1.5532315]
[1747057837787,0.22762518,104150.0,104140.0,1.52582969]
[1747057838003,0.22762574,104150.0,104140.0,1.5162277]
[1747057838226,0.03559419,104150.0,104140.0,1.52582988]
[1747057838441,0.23722662,104150.0,104140.0,1.31457609]
[1747057838649,0.21802476,104150.0,104140.0,1.04810772]
[1747057838862,0.02599303,104150.0,104140.0,1.54503322]
[1747057839297,0.00679144,104150.0,104140.0,1.56223322]
[1747057840573,0.00679144,104150.0,104140.0,1.57677407]
[1747057840796,0.00679144,104150.0,104140.0,3.37351707]
[1747057841460,0.00314676,104150.0,104140.0,3.37351707]
[1747057842106,0.00314676,104150.0,104140.0,3.78819707]
[1747057842799,0.2143799,104150.0,104140.0,0.8368543]
[1747057843035,0.02234862,104150.0,104140.0,1.05770971]
[1747057843247,0.02234881,104150.0,104140.0,1.50662525]
[1747057843464,0.21437999,104150.0,104140.0,0.0968543]
[1747057843678,0.23157999,104150.0,104140.0,0.0968543]
[1747057843894,0.23157999,104150.0,104140.0,0.001]
[1747057844118,0.24887999,104150.0,104140.0,0.001]
[1747057845199,0.02034676,104150.0,104140.0,0.19304916]
[1747057845442,0.00314676,104150.0,104140.0,1.2814715]
[1747057845659,0.00314676,104150.0,104140.0,1.45695235]
[1747057845864,0.00714676,104150.0,104140.0,1.45695235]
[1747057846087,0.00714676,104150.0,104140.0,1.44480535]
[1747057846295,0.23358222,104150.0,104140.0,1.28047168]
[1747057846500,0.23858222,104150.0,104140.0,1.29107358]
[1747057846727,0.23858194,104150.0,104140.0,1.30067539]
[1747057846950,0.04155113,104150.0,104140.0,1.30067539]
[1747057847162,0.00314676,104150.0,104140.0,1.30067539]
[1747057847366,0.00314676,104150.0,104140.0,1.31717539]
[1747057847998,0.00314676,104150.0,104140.0,1.71717539]
[1747057848464,0.00314676,104150.0,104140.0,2.85853724]
[1747057849237,0.00314676,104150.0,104140.0,2.85753724]
[1747057849616,0.00314676,104150.0,104140.0,2.86153724]
[1747057850450,0.00314676,104150.0,104140.0,2.86223836]
[1747057850451,0.00044564,104150.0,104140.0,2.86223836]
[1747057850668,0.00044564,104150.0,104140.0,2.86523836]
[1747057851290,0.002,104170.0,104140.0,2.81722822]
[1747057851515,0.002,104170.0,104160.0,1.14892994]
[1747057851723,0.002,104170.0,104160.0,1.29460994]
[1747057852154,0.22279135,104170.0,104160.0,1.67046913]
[1747057852365,0.222792,104170.0,104160.0,1.03746701]
[1747057852591,0.222792,104170.0,104160.0,0.4358543]
[1747057852803,0.21319277,104170.0,104160.0,0.6374671]
[1747057853052,0.21319277,104170.0,104160.0,1.04706743]
[1747057853205,0.21319277,104170.0,104160.0,1.02786658]
[1747057853423,0.20359345,104170.0,104160.0,0.64706752]
[1747057853630,0.01159932,104170.0,104160.0,0.65666758]
[1747057853832,0.03079786,104170.0,104160.0,0.66626754]
[1747057854038,0.22279227,104170.0,104160.0,0.63746719]
[1747057854240,0.23239196,104170.0,104160.0,0.65666777]
[1747057854673,0.21123314,104150.0,104140.0,0.77002291]
[1747057854883,0.21123314,104150.0,104140.0,0.43460458]
[1747057855094,0.20163207,104150.0,104140.0,0.58255542]
[1747057855304,0.20163207,104150.0,104140.0,0.49655542]
[1747057855505,0.21733207,104150.0,104140.0,0.30780921]
[1747057855711,0.24613611,104150.0,104140.0,0.65741111]
[1747057855920,0.24613611,104150.0,104140.0,1.125531]
[1747057856132,0.0177,104170.0,104160.0,0.21121304]
[1747057856340,0.0464975,104170.0,104160.0,0.78478913]
[1747057856549,0.02119799,104170.0,104160.0,0.79438909]
[1747057856761,0.23239057,104170.0,104160.0,0.28786658]
[1747057856966,0.0192002,104160.0,104150.0,0.55123277]
[1747057857188,0.01920011,104160.0,104150.0,1.12480886]
[1747057857613,0.00959996,104160.0,104150.0,0.97357609]
[1747057857942,0.21319304,104170.0,104160.0,0.21121322]
[1747057858150,0.21319304,104170.0,104160.0,0.21121341]
[1747057858355,0.0189,104170.0,104160.0,0.31666814]
[1747057858578,0.0189,104170.0,104160.0,0.33586834]
[1747057858579,0.02119808,104170.0,104160.0,0.33586834]
[1747057858797,0.002,104170.0,104160.0,0.81359013]
[1747057859234,0.002,104170.0,104160.0,1.21359013]
[1747057859648,0.0351,104170.0,104140.0,0.34070112]
[1747057859847,0.05150223,104150.0,104140.0,0.00070112]
[1747057860054,0.25313412,104150.0,104140.0,0.20235264]
[1747057860260,0.23393207,104150.0,104140.0,0.00070112]
[1747057860941,0.20165152,104140.0,104130.0,0.00960338]
[1747057861161,0.20165152,104140.0,104130.0,0.62806866]
[1747057861366,0.20165152,104140.0,104130.0,0.63767194]
[1747057861575,0.22085569,104140.0,104130.0,0.43600106]
[1747057861809,0.21125379,104140.0,104130.0,0.63767185]
[1747057862018,0.2208556,104140.0,104130.0,0.63767204]
[1747057862251,0.2112537,104140.0,104130.0,0.43600106]
[1747057862684,0.2112537,104140.0,104130.0,0.43629994]
[1747057862905,0.20883072,104150.0,104130.0,0.44590332]
[1747057863141,0.20883072,104150.0,104140.0,0.79635182]
[1747057863142,0.001,104150.0,104140.0,0.79635182]
[1747057863354,0.23043491,104150.0,104140.0,0.98066561]
[1747057863569,0.21123332,104150.0,104140.0,0.0958543]
[1747057863788,0.21125361,104140.0,104130.0,0.53251324]
[1747057863997,0.22085597,104140.0,104130.0,0.65717684]
[1747057864632,0.01920445,104140.0,104130.0,0.66677957]
[1747057864852,0.21323314,104150.0,104140.0,0.2112536]
[1747057865065,0.04520053,104160.0,104150.0,0.22083448]
[1747057865271,0.23721337,104160.0,104150.0,0.20163225]
[1747057865515,0.22761313,104160.0,104150.0,0.20163225]
[1747057865772,0.22081374,104160.0,104150.0,0.23043611]
[1747057866013,0.02879971,104160.0,104150.0,0.79440965]
[1747057866264,0.22279218,104170.0,104160.0,0.220813]
[1747057866498,0.002,104170.0,104160.0,0.80398924]
[1747057866733,0.03079768,104170.0,104160.0,0.80398924]
[1747057866858,0.22279227,104170.0,104160.0,0.2974671]
[1747057867124,0.21319258,104170.0,104160.0,0.31666749]
[1747057867353,0.21319203,104170.0,104160.0,0.79438928]
[1747057867571,0.002,104190.0,104170.0,0.34]
[1747057867793,0.002,104190.0,104180.0,1.89310972]
[1747057867997,0.002,104190.0,104180.0,1.89119055]
[1747057868918,0.00348891,104190.0,104180.0,1.89119055]
[1747057869143,0.00348891,104190.0,104180.0,1.91714675]
[1747057869564,0.00348891,104190.0,104180.0,2.31714675]
[1747057869798,0.00348891,104190.0,104180.0,1.46818396]
[1747057870050,0.00348891,104190.0,104180.0,1.86694875]
[1747057870521,0.00248891,104190.0,104180.0,1.86694875]
[1747057870731,0.00248891,104190.0,104180.0,1.88494875]
[1747057870951,0.00248891,104190.0,104180.0,1.40722696]
[1747057871165,0.00248891,104190.0,104180.0,1.88494875]
[1747057873855,0.07488572,104200.0,104190.0,1.06911207]
[1747057874080,0.02617709,104200.0,104190.0,4.16496637]
[1747057874306,0.01733998,104200.0,104190.0,4.16496637]
[1747057874532,0.01733998,104200.0,104190.0,3.19943937]
[1747057874788,0.01733998,104200.0,104190.0,2.67854137]
[1747057875012,0.00996558,104200.0,104190.0,2.67854137]
[1747057875253,0.00996558,104200.0,104190.0,2.68454137]
[1747057876405,0.0158264,104210.0,104200.0,1.05475003]
[1747057876656,0.0158264,104210.0,104200.0,4.72518518]
[1747057876657,0.0058264,104210.0,104200.0,4.72518518]
[1747057876919,0.01,104280.0,104240.0,0.19186492]
[1747057877174,0.06033982,104290.0,104280.0,0.59269976]
[1747057877424,0.05611981,104290.0,104280.0,1.51731755]
[1747057877666,0.01183962,104290.0,104280.0,1.34342155]
[1747057877902,0.01183962,104290.0,104280.0,1.05282155]
[1747057878114,0.01183962,104290.0,104280.0,1.19826155]
[1747057878395,0.01183962,104290.0,104280.0,1.29411585]
[1747057878643,0.01283962,104290.0,104280.0,2.48155585]
[1747057878897,0.01283962,104290.0,104280.0,2.49795585]
[1747057879151,0.01283962,104290.0,104280.0,1.80414285]
[1747057879391,0.01283962,104290.0,104280.0,2.09470285]
[1747057879635,0.01283962,104290.0,104280.0,2.11863949]
[1747057879918,0.01283962,104290.0,104280.0,1.6409177]
[1747057880168,0.01283962,104290.0,104280.0,2.11859949]
[1747057880911,0.01283962,104290.0,104280.0,1.1118907]
[1747057881163,0.01283962,104290.0,104280.0,2.20927849]
[1747057881403,0.01283962,104290.0,104280.0,2.18797649]
[1747057881867,0.01283962,104290.0,104280.0,2.20437649]
[1747057882090,0.01283962,104290.0,104280.0,2.34941649]
[1747057882315,0.01283962,104290.0,104280.0,2.05897649]
[1747057882564,0.01283962,104290.0,104280.0,2.34941649]
[1747057883480,0.01283962,104290.0,104280.0,2.34937649]
[1747057884200,0.01283962,104290.0,104280.0,2.33293649]
[1747057884433,0.01283962,104290.0,104280.0,2.13790449]
[1747057884660,0.2237892,104290.0,104280.0,1.05161297]
[1747057884893,0.2237892,104290.0,104280.0,0.0958543]
[1747057885412,0.2406892,104290.0,104280.0,0.0958543]
[1747057885616,0.01283962,104290.0,104280.0,0.29723519]
[1747057885843,0.04160435,104290.0,104280.0,0.66600277]
[1747057886325,0.02242762,104290.0,104280.0,0.66600277]
[1747057886551,0.24296584,104290.0,104280.0,0.66600295]
[1747057886791,0.22378966,104290.0,104280.0,0.8358543]
[1747057887019,0.24038966,104290.0,104280.0,0.0958543]
[1747057887240,0.22121256,104290.0,104260.0,0.22722122]
[1747057887455,0.201395,104280.0,104270.0,0.63725432]
[1747057887685,0.01283962,104290.0,104280.0,0.19179133]
[1747057887929,0.23337756,104290.0,104280.0,0.64874211]
[1747057888158,0.21320111,104290.0,104280.0,0.4358543]
[1747057888388,0.21320111,104290.0,104280.0,0.62764563]
[1747057888618,0.23237747,104290.0,104280.0,0.65641339]
[1747057888890,0.01183962,104290.0,104280.0,0.67559132]
[1747057889130,0.0310158,104290.0,104280.0,0.67559132]
[1747057890293,0.03101571,104290.0,104280.0,0.67559132]
[1747057890534,0.04160417,104290.0,104280.0,0.67559132]
[1747057890736,0.04160408,104290.0,104280.0,0.67559132]
[1747057890971,0.03201571,104290.0,104280.0,1.07559132]
[1747057891884,0.04160408,104290.0,104280.0,1.07559132]
[1747057892112,0.03201571,104290.0,104280.0,1.07559132]
[1747057892349,0.03201562,104290.0,104280.0,1.55331311]
[1747057892835,0.2429652,104290.0,104280.0,1.0372351]
[1747057893055,0.0511929,104290.0,104280.0,1.06600232]
[1747057893283,0.22378957,104290.0,104280.0,1.02764563]
[1747057893513,0.22378957,104290.0,104280.0,1.0468243]
[1747057893979,0.22378957,104290.0,104280.0,1.0564134]
[1747057894199,0.03201663,104290.0,104280.0,1.06600232]
[1747057894390,0.03201663,104290.0,104280.0,0.66600232]
[1747057894541,0.22378957,104290.0,104280.0,0.66600232]
[1747057894765,0.01283962,104290.0,104280.0,1.15826496]
[1747057895604,0.03201589,104290.0,104280.0,1.15826496]
[1747057895817,0.0320158,104290.0,104280.0,0.66600232]
[1747057896019,0.01283962,104290.0,104280.0,1.17526496]
[1747057896230,0.01283962,104290.0,104280.0,2.60323996]
[1747057896428,0.01283962,104290.0,104280.0,1.15826496]
[1747057896632,0.01283962,104290.0,104280.0,1.33429396]
[1747057897689,0.01283962,104290.0,104280.0,1.33459284]
[1747057898231,0.01283962,104290.0,104280.0,1.69095284]
[1747057899102,0.01283962,104290.0,104280.0,1.70775284]
[1747057900248,0.01283962,104290.0,104280.0,1.72485284]
[1747057901303,0.00089,104300.0,104290.0,0.34]
[1747057901511,0.00137843,104300.0,104290.0,4.16741385]
[1747057902118,0.00137843,104300.0,104290.0,4.56741385]
[1747057902549,0.00137843,104300.0,104290.0,4.5819547]
[1747057902986,0.01214909,104320.0,104310.0,0.41740016]
[1747057903194,0.00521999,104320.0,104310.0,3.18426042]
[1747057903409,0.00521999,104320.0,104310.0,2.96008042]
[1747057903621,0.00521999,104320.0,104310.0,1.40606463]
[1747057903829,0.00521999,104320.0,104310.0,1.97944942]
[1747057904429,0.00521999,104320.0,104310.0,1.67436942]
[1747057904637,0.00521999,104320.0,104310.0,1.83805242]
[1747057905053,0.00521999,104320.0,104310.0,1.83905242]
[1747057905254,0.00521999,104320.0,104310.0,1.69441242]
[1747057905713,0.00521999,104320.0,104310.0,2.80955542]
[1747057906108,0.00521999,104320.0,104310.0,2.82565542]
[1747057907640,0.00521999,104320.0,104310.0,2.49249363]
[1747057907867,0.00521999,104320.0,104310.0,2.97021542]
[1747057908075,0.00521999,104320.0,104310.0,2.74010342]
[1747057908932,0.00521999,104320.0,104310.0,2.45074342]
[1747057909154,0.00521999,104320.0,104310.0,2.74006342]
[1747057909360,0.0035,104330.0,104320.0,1.50009925]
[1747057909588,0.00364644,104330.0,104320.0,1.59595355]
[1747057909810,0.002,104350.0,104340.0,0.56043208]
[1747057909993,0.002,104350.0,104340.0,2.05477626]
[1747057910168,0.002,104350.0,104340.0,1.77747041]
[1747057910789,0.002,104350.0,104340.0,1.63267041]
[1747057911114,0.002,104350.0,104340.0,1.64707841]
[1747057911319,0.002,104350.0,104340.0,1.75251141]
[1747057912190,0.01158249,104350.0,104340.0,1.64707841]
[1747057912400,0.22341123,104350.0,104340.0,1.04670279]
[1747057912607,0.03587667,104350.0,104340.0,1.50227822]
[1747057913036,0.00712903,104350.0,104340.0,1.50227822]
[1747057913266,0.02629409,104350.0,104340.0,1.50227822]
[1747057913487,0.25045732,104350.0,104340.0,1.02753534]
[1747057913701,0.25045732,104350.0,104340.0,0.0958543]
[1747057915083,0.2012649,104340.0,104330.0,0.4]
[1747057915289,0.0258835,104340.0,104330.0,0.72589229]
[1747057915512,0.01370344,104340.0,104330.0,1.17188432]
[1747057915716,0.00412022,104340.0,104330.0,0.77188432]